fUSD/lending_fUSD_20260404
["ID","MTS","AMOUNT","RATE_DAILY","PERIOD"]
[419713306,1775332262190,-1572.0,0.00033996,11]
[419713307,1775332262200,-1143.28,0.00034,30]
[419713308,1775332262210,-157.0,0.00034,120]
[419713309,1775332262219,-182.22545894,0.00034,30]
[419713310,1775332262229,-2807.0,0.00034085,11]
[419713311,1775332262239,-500.0,0.0003417,120]
[419713312,1775332262249,-371.59668296,0.00034191,7]
[419713313,1775332262258,-250.0,0.00034205,35]
[419713314,1775332262268,-172.0,0.00034247,120]
[419713315,1775332262277,-191.0,0.00034247,120]
[419713316,1775332262287,-200.0,0.00034247,2]
[419713317,1775332262299,-200.0,0.00034247,2]
[419713318,1775332262309,-172.0,0.00034247,2]
[419713319,1775332262318,-150.0,0.00034247,2]
[419713320,1775332262327,-281.0,0.00034247,2]
[419713321,1775332262337,-200.0,0.00034247,2]
[419713322,1775332262346,-200.0,0.00034247,2]
[419713323,1775332262356,-167.0,0.00034247,2]
[419713324,1775332262365,-700.0,0.00034248,21]
[419713325,1775332262374,-1529.05,0.00034308,2]
[419713326,1775332262385,-1584.0,0.00034316,11]
[419713327,1775332262394,-311.12,0.0003438,30]
[419713328,1775332262404,-386.77,0.0003438,30]
[419713329,1775332262413,-2157.96,0.0003438,30]
[419713330,1775332262423,-11177.23,0.000344,2]
[419713331,1775332262432,-1569.0,0.00034405,11]
[419713332,1775332262442,-153.0,0.00034413,30]
[419713333,1775332262453,-470.0,0.00034413,30]
[419713334,1775332262463,-840.0,0.00034413,30]
[419713335,1775332262473,-1725.0,0.00034413,30]
[419713336,1775332262483,-270.0,0.00034421,30]
[419713337,1775332262492,-530.0,0.00034439,30]
[419713338,1775332262502,-279.0,0.00034439,30]
[419713339,1775332262512,-1749.04235448,0.0003449,2]
[419713340,1775332262521,-184.89149165,0.000345,21]
[419713341,1775332262531,-1000.0,0.00034506,120]
[419713342,1775332262541,-185.0,0.00034514,11]
[419713343,1775332262552,-1000.0,0.00034549,120]
[419713344,1775332262562,-160.9357,0.000346,14]
[419713345,1775332262573,-515.0,0.00034611,20]
[419713346,1775332262583,-160.9357,0.000347,14]
[419713347,1775332262594,-2810.0,0.00034725,11]
[419713348,1775332262604,-1000.0,0.00034748,10]
[419713349,1775332262615,-1500.0,0.00034795,2]
[419713350,1775332262625,-500.0,0.00034796,21]
[419713351,1775332262634,-160.9357,0.000348,14]
[419713352,1775332262645,-152.0,0.00034846,4]
[419713353,1775332262655,-3961.93673453,0.0003487,30]
[419713354,1775332262664,-207.0,0.0003488,30]
[419713355,1775332262674,-160.9357,0.000349,14]
[419713356,1775332262683,-11177.23,0.000349,2]
[419713357,1775332262696,-2000.0,0.000349,2]
[419713358,1775332262707,-500.0,0.00034927,120]
[419713359,1775332262719,-2870.31561213,0.0003498,23]
[419713360,1775332262730,-160.9357,0.00035,14]
[419713361,1775332262740,-2900.0,0.00035,120]
[419713362,1775332262751,-150.0,0.00035,2]
[419713363,1775332262760,-164.127,0.00035,2]
[419713364,1775332262770,-1937.12046637,0.00035,2]
[419713365,1775332262780,-419.15464738,0.00035,120]
[419713366,1775332262790,-72177.7164399,0.00035,2]
[419713367,1775332262799,-22000.16581912,0.00035,2]
[419713368,1775332262808,-259.10852284,0.00035,120]
[419713369,1775332262817,-1572.0,0.00035051,11]
[419713370,1775332262827,-2810.0,0.0003516,11]
[419713371,1775332262836,-1572.0,0.00035163,11]
[419713372,1775332262845,-500.0,0.000352,120]
[419713373,1775332262854,-500.0,0.000352,120]
[419713374,1775332262864,-500.0,0.000352,120]
[419713375,1775332262873,-858.4186866,0.000352,120]
[419713376,1775332262882,-500.0,0.000352,120]
[419713377,1775332262892,-659.5957703,0.000352,120]
[419713378,1775332262902,-873.1120974,0.000352,120]
[419713379,1775332262911,-251.3652779,0.000352,120]
[419713380,1775332262920,-861.3324331,0.000352,120]
[419713381,1775332262930,-203.2101207,0.000352,120]
[419713382,1775332262939,-249.197605,0.000352,120]
[419713383,1775332262948,-166.5888187,0.000352,120]
[419713384,1775332262958,-830.0605381,0.000352,120]
[419713385,1775332262967,-500.0,0.000352,120]
[419713386,1775332262976,-500.0,0.000352,120]
[419713387,1775332262986,-500.0,0.000352,120]
[419713388,1775332262995,-500.0,0.000352,120]
[419713389,1775332263004,-500.0,0.000352,120]
[419713390,1775332263014,-500.0,0.000352,120]
[419713391,1775332263024,-500.0,0.000352,120]
[419713392,1775332263036,-500.0,0.000352,120]
[419713393,1775332263045,-500.0,0.000352,120]
[419713394,1775332263055,-500.0,0.000352,120]
[419713395,1775332263065,-500.0,0.000352,120]
[419713396,1775332263075,-500.0,0.000352,120]
[419713397,1775332263084,-581.8579125,0.000352,120]
[419713398,1775332263094,-929.1951682,0.000352,120]
[419713399,1775332263103,-349.01968115,0.00035232,7]
[419713400,1775332263113,-1000.0,0.00035305,120]
[419713401,1775332263122,-153.0,0.00035413,30]
[419713402,1775332263131,-470.0,0.00035413,30]
[419713403,1775332263140,-840.0,0.00035413,30]
[419713404,1775332263149,-1725.0,0.00035413,30]
[419713405,1775332263159,-270.0,0.00035421,30]
[419713406,1775332263169,-530.0,0.00035439,30]
[419713407,1775332263179,-279.0,0.00035439,30]
[419713408,1775332263188,-2810.0,0.00035483,11]
[419713409,1775332263199,-11177.23,0.000355,2]
[419713410,1775332263208,-237.43996902,0.00035516,2]
[419713411,1775332263218,-832.0,0.00035589,30]
[419713412,1775332263227,-677.53846154,0.00035589,30]
[419713413,1775332263237,-1248.0,0.00035589,30]
[419713414,1775332263247,-800.0,0.00035589,30]
[419713415,1775332263256,-1313.53846154,0.00035589,30]
[419713416,1775332263265,-847.07692308,0.00035589,30]
[419713417,1775332263274,-849.53846154,0.00035589,30]
[419713418,1775332263283,-763.07692308,0.00035589,30]
[419713419,1775332263293,-1362.76923077,0.00035589,30]
[419713420,1775332263302,-912.30769231,0.00035589,30]
[419713421,1775332263311,-809.53846154,0.00035589,30]
[419713422,1775332263320,-1321.84615385,0.00035589,30]
[419713423,1775332263330,-1243.07692308,0.00035589,30]
[419713424,1775332263339,-1409.23076923,0.00035589,30]
[419713425,1775332263348,-995.59218113,0.00035589,30]
[419713426,1775332263358,-174.0,0.00035589,30]
[419713427,1775332263367,-150.0,0.00035613,9]
[419713428,1775332263376,-500.0,0.00035613,9]
[419713429,1775332263385,-500.0,0.00035613,9]
[419713430,1775332263395,-150.0,0.00035613,9]
[419713431,1775332263405,-1665.0,0.00035613,9]
[419713432,1775332263416,-500.0,0.00035613,9]
[419713433,1775332263426,-150.0,0.00035613,2]
[419713434,1775332263435,-150.0,0.00035613,9]
[419713435,1775332263446,-157.30297586,0.00035613,9]
[419713436,1775332263456,-500.0,0.00035613,9]
[419713437,1775332263465,-500.0,0.00035613,9]
[419713438,1775332263476,-500.0,0.00035613,9]
[419713439,1775332263486,-500.0,0.00035613,9]
[419713440,1775332263496,-161.91790153,0.00035613,9]
[419713441,1775332263506,-153.68639938,0.00035613,9]
[419713442,1775332263517,-500.0,0.00035613,9]
[419713443,1775332263527,-150.0,0.00035613,9]
[419713444,1775332263536,-500.0,0.00035613,9]
[419713445,1775332263548,-500.0,0.00035613,9]
[419713446,1775332263558,-500.0,0.00035613,9]
[419713447,1775332263567,-297.0708939,0.00035615,7]
[419713448,1775332263575,-210.62973552,0.00035615,7]
[419713449,1775332263585,-578.60686938,0.00035615,9]
[419713450,1775332263595,-578.60686938,0.00035615,9]
[419713451,1775332263604,-578.60686938,0.00035615,9]
[419713452,1775332263613,-578.60686937,0.00035615,9]
[419713453,1775332263623,-578.60686937,0.00035615,9]
[419713454,1775332263631,-578.60686937,0.00035615,9]
[419713455,1775332263642,-245.0539604,0.00035615,7]
[419713456,1775332263652,-500.0,0.00035616,9]
[419713457,1775332263662,-500.0,0.00035616,9]
[419713458,1775332263672,-1331.034876,0.00035616,9]
[419713459,1775332263682,-1308.859522,0.00035616,9]
[419713460,1775332263692,-151.11859336,0.00035616,9]
[419713461,1775332263703,-500.0,0.00035616,9]
[419713462,1775332263715,-461.81001186,0.00035616,9]
[419713463,1775332263928,-500.0,0.00035616,9]
[419713464,1775332263954,-500.0,0.00035616,9]
[419713465,1775332263964,-500.0,0.00035616,9]
[419713466,1775332263974,-500.0,0.00035616,9]
[419713467,1775332263985,-500.0,0.00035616,9]
[419713468,1775332263994,-254.85168467,0.00035616,9]
[419713469,1775332264005,-500.0,0.00035616,9]
[419713470,1775332264017,-500.0,0.00035616,9]
[419713471,1775332264027,-500.0,0.00035616,9]
[419713472,1775332264037,-500.0,0.00035616,9]
[419713473,1775332264047,-500.0,0.00035616,9]
[419713474,1775332264058,-500.0,0.00035616,9]
[419713475,1775332264068,-500.0,0.00035616,9]
[419713476,1775332264079,-500.0,0.00035616,9]
[419713477,1775332264089,-398.63504451,0.00035616,9]
[419713478,1775332264099,-500.0,0.00035616,9]
[419713479,1775332264111,-500.0,0.00035616,9]
[419713480,1775332264121,-500.0,0.00035616,9]
[419713481,1775332264130,-500.0,0.00035616,9]
[419713482,1775332264140,-408.051024,0.00035616,2]
[419713483,1775332264150,-500.0,0.00035616,9]
[419713484,1775332264160,-500.0,0.00035616,9]
[419713485,1775332264169,-500.77348807,0.00035616,9]
[419713486,1775332264179,-500.0,0.00035616,9]
[419713487,1775332264188,-500.0,0.00035616,9]
[419713488,1775332264198,-500.0,0.00035616,9]
[419713489,1775332264207,-500.0,0.00035616,9]
[419713490,1775332264217,-500.0,0.00035616,9]
[419713491,1775332264227,-500.0,0.00035616,9]
[419713492,1775332264238,-500.68823974,0.00035616,9]
[419713493,1775332264249,-500.0,0.00035616,9]
[419713494,1775332264258,-500.0,0.00035616,9]
[419713495,1775332264268,-500.0,0.00035616,9]
[419713496,1775332264277,-500.0,0.00035616,9]
[419713497,1775332264287,-500.0,0.00035616,9]
[419713498,1775332264296,-500.0,0.00035616,9]
[419713499,1775332264306,-500.0,0.00035616,9]
[419713500,1775332264315,-500.0,0.00035616,9]
[419713501,1775332264324,-500.0,0.00035616,9]
[419713502,1775332264332,-500.0,0.00035616,9]
[419713503,1775332264342,-500.0,0.00035616,9]
[419713504,1775332264351,-500.0,0.00035616,9]
[419713505,1775332264360,-500.0,0.00035616,9]
[419713506,1775332264369,-158.79295852,0.00035616,9]
[419713507,1775332264378,-500.0,0.00035616,9]
[419713508,1775332264388,-500.0,0.00035616,9]
[419713509,1775332264397,-500.0,0.00035616,9]
[419713510,1775332264407,-500.0,0.00035616,9]
[419713511,1775332264418,-500.0,0.00035616,9]
[419713512,1775332264428,-500.0,0.00035616,9]
[419713513,1775332264439,-500.0,0.00035616,9]
[419713514,1775332264449,-500.0,0.00035616,9]
[419713515,1775332264460,-308.70028341,0.00035616,9]
[419713516,1775332264468,-1728.47,0.00035616,9]
[419713517,1775332264477,-658.66,0.00035616,9]
[419713518,1775332264487,-500.0,0.00035616,9]
[419713519,1775332264496,-517.62491903,0.00035616,9]
[419713520,1775332264505,-204.31969448,0.00035616,9]
[419713521,1775332264515,-313.06546566,0.00035616,9]
[419713522,1775332264525,-500.0,0.00035616,9]
[419713523,1775332264536,-506.41178125,0.00035616,9]
[419713524,1775332264545,-225.10974701,0.00035616,9]
[419713525,1775332264555,-500.0,0.00035616,9]
[419713526,1775332264564,-500.0,0.00035616,9]
[419713527,1775332264575,-500.0,0.00035616,9]
[419713528,1775332264584,-377.9163253,0.00035616,9]
[419713529,1775332264594,-324.36675634,0.00035616,9]
[419713530,1775332264604,-500.0,0.00035616,9]
[419713531,1775332264614,-500.0,0.00035616,9]
[419713532,1775332264625,-500.0,0.00035616,9]
[419713533,1775332264634,-410.81537497,0.00035616,9]
[419713534,1775332264643,-500.0,0.00035616,9]
[419713535,1775332264652,-529.13818294,0.00035616,9]
[419713536,1775332264661,-2616.79,0.00035616,9]
[419713537,1775332264670,-503.76062131,0.00035616,9]
[419713538,1775332264680,-503.86108155,0.00035616,9]
[419713539,1775332264690,-500.0,0.00035616,9]
[419713540,1775332264702,-500.0,0.00035616,9]
[419713541,1775332264711,-500.0,0.00035616,9]
[419713542,1775332264720,-500.0,0.00035616,9]
[419713543,1775332264729,-500.0,0.00035616,9]
[419713544,1775332264738,-500.0,0.00035616,9]
[419713545,1775332264747,-500.0,0.00035616,9]
[419713546,1775332264756,-533.49,0.00035616,9]
[419713547,1775332264765,-500.0,0.00035616,9]
[419713548,1775332264774,-500.0,0.00035616,9]
[419713549,1775332264783,-500.0,0.00035616,9]
[419713550,1775332264794,-500.0,0.00035616,9]
[419713551,1775332264805,-500.0,0.00035616,9]
[419713552,1775332264814,-500.0,0.00035616,9]
[419713553,1775332264823,-500.0,0.00035616,9]
[419713554,1775332264832,-500.0,0.00035616,9]
[419713555,1775332264842,-500.0,0.00035616,9]
[419713556,1775332264852,-500.0,0.00035616,9]
[419713557,1775332264861,-500.0,0.00035616,9]
[419713558,1775332264871,-500.0,0.00035616,9]
[419713559,1775332264880,-500.0,0.00035616,9]
[419713560,1775332264890,-500.0,0.00035616,9]
[419713561,1775332264900,-500.0,0.00035616,9]
[419713562,1775332264909,-500.0,0.00035616,9]
[419713563,1775332264918,-500.0,0.00035616,9]
[419713564,1775332264928,-500.0,0.00035616,9]
[419713565,1775332264937,-500.0,0.00035616,9]
[419713566,1775332264947,-500.0,0.00035616,9]
[419713567,1775332264956,-500.0,0.00035616,9]
[419713568,1775332264965,-500.0,0.00035616,9]
[419713569,1775332264975,-518.24787717,0.00035616,9]
[419713570,1775332264985,-500.0,0.00035616,9]
[419713571,1775332264995,-634.23,0.00035616,9]
[419713572,1775332265004,-505.10016996,0.00035616,9]
[419713573,1775332265015,-795.8,0.00035616,9]
[419713574,1775332265024,-506.56285344,0.00035616,9]
[419713575,1775332265034,-500.0,0.00035616,9]
[419713576,1775332265043,-500.0,0.00035616,9]
[419713577,1775332265052,-500.0,0.00035616,9]
[419713578,1775332265062,-500.0,0.00035616,9]
[419713579,1775332265071,-500.0,0.00035616,9]
[419713580,1775332265081,-500.0,0.00035616,9]
[419713581,1775332265090,-500.0,0.00035616,9]
[419713582,1775332265100,-500.0,0.00035616,2]
[419713583,1775332265109,-500.0,0.00035616,9]
[419713584,1775332265118,-500.0,0.00035616,9]
[419713585,1775332265127,-500.0,0.00035616,9]
[419713586,1775332265137,-500.0,0.00035616,9]
[419713587,1775332265146,-500.0,0.00035616,9]
[419713588,1775332265155,-500.0,0.00035616,9]
[419713589,1775332265164,-500.0,0.00035616,9]
[419713590,1775332265174,-493.03755148,0.00035616,9]
[419713591,1775332265184,-210.65299443,0.00035616,9]
[419713592,1775332265193,-500.0,0.00035616,9]
[419713593,1775332265202,-500.0,0.00035616,9]
[419713594,1775332265213,-500.0,0.00035616,9]
[419713595,1775332265222,-536.12783102,0.00035616,9]
[419713596,1775332265232,-500.0,0.00035616,9]
[419713597,1775332265241,-500.0,0.00035616,9]
[419713598,1775332265250,-500.0,0.00035616,9]
[419713599,1775332265260,-500.0,0.00035616,9]
[419713600,1775332265270,-500.0,0.00035616,9]
[419713601,1775332265279,-500.0,0.00035616,9]
[419713602,1775332265289,-168.42554852,0.00035616,9]
[419713603,1775332265298,-334.91813311,0.00035616,9]
[419713604,1775332265308,-500.0,0.00035616,9]
[419713605,1775332265318,-500.0,0.00035616,9]
[419713606,1775332265327,-500.0,0.00035616,9]
[419713607,1775332265337,-500.0,0.00035616,9]
[419713608,1775332265346,-531.16,0.00035616,9]
[419713609,1775332265356,-500.0,0.00035616,9]
[419713610,1775332265365,-500.0,0.00035616,9]
[419713611,1775332265375,-500.0,0.00035616,9]
[419713612,1775332265384,-500.0,0.00035616,9]
[419713613,1775332265394,-500.0,0.00035616,9]
[419713614,1775332265403,-500.0,0.00035616,9]
[419713615,1775332265418,-500.0,0.00035616,9]
[419713616,1775332265427,-1812.29,0.00035616,9]
[419713617,1775332265436,-500.0,0.00035616,9]
[419713618,1775332265445,-173.53214365,0.00035616,9]
[419713619,1775332265455,-500.0,0.00035616,9]
[419713620,1775332265464,-500.0,0.00035616,9]
[419713621,1775332265474,-1052.58,0.00035616,9]
[419713622,1775332265483,-500.0,0.00035616,9]
[419713623,1775332265492,-500.0,0.00035616,9]
[419713624,1775332265501,-500.0,0.00035616,9]
[419713625,1775332265510,-500.0,0.00035616,9]
[419713626,1775332265520,-500.0,0.00035616,9]
[419713627,1775332265529,-500.0,0.00035616,9]
[419713628,1775332265538,-500.0,0.00035616,9]
[419713629,1775332265548,-500.0,0.00035616,9]
[419713630,1775332265561,-500.0,0.00035616,9]
[419713631,1775332265572,-503.77,0.00035616,9]
[419713632,1775332265583,-500.0,0.00035616,9]
[419713633,1775332265593,-500.0,0.00035616,9]
[419713634,1775332265603,-500.0,0.00035616,9]
[419713635,1775332265612,-559.77333643,0.00035616,9]
[419713636,1775332265622,-500.0,0.00035616,9]
[419713637,1775332265633,-500.0,0.00035616,9]
[419713638,1775332265643,-500.0,0.00035616,9]
[419713639,1775332265652,-1592.56,0.00035616,9]
[419713640,1775332265662,-500.0,0.00035616,9]
[419713641,1775332265671,-500.0,0.00035616,9]
[419713642,1775332265680,-500.0,0.00035616,9]
[419713643,1775332265690,-1622.77,0.00035616,9]
[419713644,1775332265699,-500.0,0.00035616,9]
[419713645,1775332265708,-500.0,0.00035616,9]
[419713646,1775332265717,-500.0,0.00035616,9]
[419713647,1775332265726,-500.0,0.00035616,9]
[419713648,1775332265735,-500.0,0.00035616,9]
[419713649,1775332265745,-500.0,0.00035616,9]
[419713650,1775332265754,-500.0,0.00035616,9]
[419713651,1775332265765,-500.0,0.00035616,9]
[419713652,1775332265775,-500.0,0.00035616,9]
[419713653,1775332265784,-500.0,0.00035616,9]
[419713654,1775332265793,-500.0,0.00035616,9]
[419713655,1775332265802,-500.0,0.00035616,9]
[419713656,1775332265811,-1201.59,0.00035616,9]
[419713657,1775332265820,-500.0,0.00035616,9]
[419713658,1775332265829,-500.0,0.00035616,9]
[419713659,1775332265838,-500.0,0.00035616,9]
[419713660,1775332265847,-500.0,0.00035616,9]
[419713661,1775332265856,-500.0,0.00035616,9]
[419713662,1775332265865,-500.0,0.00035616,9]
[419713663,1775332265875,-500.0,0.00035616,9]
[419713664,1775332265884,-519.76493951,0.00035616,9]
[419713665,1775332265894,-500.0,0.00035616,9]
[419713666,1775332265903,-500.0,0.00035616,9]
[419713667,1775332265912,-500.0,0.00035616,9]
[419713668,1775332265923,-205.6242188,0.00035616,9]
[419713669,1775332265932,-500.0,0.00035616,9]
[419713670,1775332265941,-1721.74,0.00035616,9]
[419713671,1775332265951,-500.0,0.00035616,9]
[419713672,1775332265961,-500.0,0.00035616,9]
[419713673,1775332265970,-500.0,0.00035616,9]
[419713674,1775332265980,-500.0,0.00035616,9]
[419713675,1775332265990,-500.0,0.00035616,9]
[419713676,1775332266000,-500.0,0.00035616,9]
[419713677,1775332266009,-500.0,0.00035616,9]
[419713678,1775332266018,-500.0,0.00035616,9]
[419713679,1775332266027,-500.0,0.00035616,9]
[419713680,1775332266037,-500.0,0.00035616,9]
[419713681,1775332266047,-500.0,0.00035616,9]
[419713682,1775332266056,-530.9,0.00035616,9]
[419713683,1775332266065,-500.0,0.00035616,9]
[419713684,1775332266074,-1141.67,0.00035616,9]
[419713685,1775332266083,-500.0,0.00035616,9]
[419713686,1775332266092,-523.49,0.00035616,9]
[419713687,1775332266102,-500.0,0.00035616,9]
[419713688,1775332266111,-1736.67,0.00035616,9]
[419713689,1775332266120,-446.85143917,0.00035616,9]
[419713690,1775332266129,-500.0,0.00035616,9]
[419713691,1775332266139,-500.0,0.00035616,9]
[419713692,1775332266148,-500.0,0.00035616,9]
[419713693,1775332266157,-500.0,0.00035616,9]
[419713694,1775332266166,-500.0,0.00035616,9]
[419713695,1775332266175,-616.40734497,0.00035616,9]
[419713696,1775332266185,-500.0,0.00035616,9]
[419713697,1775332266194,-500.0,0.00035616,9]
[419713698,1775332266203,-500.0,0.00035616,9]
[419713699,1775332266212,-500.0,0.00035616,9]
[419713700,1775332266222,-500.0,0.00035616,9]
[419713701,1775332266231,-500.0,0.00035616,9]
[419713702,1775332266240,-500.0,0.00035616,9]
[419713703,1775332266248,-500.0,0.00035616,9]
[419713704,1775332266257,-503.68783293,0.00035616,9]
[419713705,1775332266267,-1294.2,0.00035616,9]
[419713706,1775332266276,-500.0,0.00035616,9]
[419713707,1775332266285,-1506.39,0.00035616,9]
[419713708,1775332266294,-500.0,0.00035616,9]
[419713709,1775332266303,-500.0,0.00035616,9]
[419713710,1775332266312,-501.67334648,0.00035616,2]
[419713711,1775332266321,-1626.06,0.00035616,9]
[419713712,1775332266330,-153.79358136,0.00035616,2]
[419713713,1775332266339,-500.0,0.00035616,9]
[419713714,1775332266348,-500.0,0.00035616,9]
[419713715,1775332266357,-500.0,0.00035616,9]
[419713716,1775332266366,-500.0,0.00035616,9]
[419713717,1775332266375,-500.0,0.00035616,2]
[419713718,1775332266384,-500.0,0.00035616,9]
[419713719,1775332266393,-500.0,0.00035616,9]
[419713720,1775332266402,-500.0,0.00035616,2]
[419713721,1775332266412,-500.0,0.00035616,9]
[419713722,1775332266420,-500.0,0.00035616,9]
[419713723,1775332266430,-500.0,0.00035616,9]
[419713724,1775332266439,-500.0,0.00035616,9]
[419713725,1775332266448,-500.0,0.00035616,9]
[419713726,1775332266456,-436.66654467,0.00035616,9]
[419713727,1775332266465,-500.0,0.00035616,9]
[419713728,1775332266474,-500.0,0.00035616,2]
[419713729,1775332266483,-500.0,0.00035616,9]
[419713730,1775332266492,-500.0,0.00035616,9]
[419713731,1775332266502,-500.0,0.00035616,9]
[419713732,1775332266510,-500.0,0.00035616,9]
[419713733,1775332266519,-377.15443669,0.00035616,9]
[419713734,1775332266529,-500.0,0.00035616,9]
[419713735,1775332266538,-500.0,0.00035616,9]
[419713736,1775332266546,-500.0,0.00035616,9]
[419713737,1775332266555,-502.01796687,0.00035616,9]
[419713738,1775332266564,-500.0,0.00035616,9]
[419713739,1775332266574,-500.0,0.00035616,9]
[419713740,1775332266583,-1189.32,0.00035616,9]
[419713741,1775332266592,-500.0,0.00035616,9]
[419713742,1775332266601,-500.0,0.00035616,9]
[419713743,1775332266610,-500.0,0.00035616,9]
[419713744,1775332266619,-500.0,0.00035616,9]
[419713745,1775332266630,-500.0,0.00035616,9]
[419713746,1775332266640,-500.0,0.00035616,9]
[419713747,1775332266649,-500.0,0.00035616,9]
[419713748,1775332266658,-500.0,0.00035616,9]
[419713749,1775332266667,-500.0,0.00035616,9]
[419713750,1775332266676,-500.0,0.00035616,9]
[419713751,1775332266685,-500.0,0.00035616,9]
[419713752,1775332266695,-500.0,0.00035616,9]
[419713753,1775332266704,-500.0,0.00035616,9]
[419713754,1775332266714,-500.0,0.00035616,9]
[419713755,1775332266723,-500.0,0.00035616,9]
[419713756,1775332266732,-902.85,0.00035616,9]
[419713757,1775332266741,-805.21,0.00035616,9]
[419713758,1775332266750,-500.0,0.00035616,9]
[419713759,1775332266759,-500.0,0.00035616,9]
[419713760,1775332266768,-1403.75,0.00035616,9]
[419713761,1775332266777,-500.0,0.00035616,9]
[419713762,1775332266786,-500.0,0.00035616,9]
[419713763,1775332266975,-500.0,0.00035616,9]
[419713764,1775332266985,-500.0,0.00035616,9]
[419713765,1775332266994,-500.0,0.00035616,9]
[419713766,1775332267003,-500.0,0.00035616,9]
[419713767,1775332267012,-500.0,0.00035616,9]
[419713768,1775332267021,-632.53,0.00035616,9]
[419713769,1775332267031,-500.0,0.00035616,9]
[419713770,1775332267040,-500.0,0.00035616,9]
[419713771,1775332267048,-1654.65,0.00035616,9]
[419713772,1775332267057,-500.0,0.00035616,9]
[419713773,1775332267067,-1839.4,0.00035616,9]
[419713774,1775332267077,-500.0,0.00035616,9]
[419713775,1775332267086,-500.0,0.00035616,9]
[419713776,1775332267096,-500.0,0.00035616,9]
[419713777,1775332267106,-500.0,0.00035616,9]
[419713778,1775332267117,-503.92723662,0.00035616,9]
[419713779,1775332267127,-500.0,0.00035616,9]
[419713780,1775332267136,-1294.36,0.00035616,9]
[419713781,1775332267145,-533.48632906,0.00035616,9]
[419713782,1775332267155,-1978.02,0.00035616,9]
[419713783,1775332267164,-500.0,0.00035616,9]
[419713784,1775332267175,-500.0,0.00035616,9]
[419713785,1775332267185,-500.0,0.00035616,9]
[419713786,1775332267195,-500.0,0.00035616,9]
[419713787,1775332267205,-500.0,0.00035616,9]
[419713788,1775332267215,-477.85797916,0.00035616,9]
[419713789,1775332267225,-500.0,0.00035616,9]
[419713790,1775332267234,-500.0,0.00035616,9]
[419713791,1775332267244,-252.37561844,0.00035616,9]
[419713792,1775332267253,-500.0,0.00035616,9]
[419713793,1775332267262,-500.0,0.00035616,9]
[419713794,1775332267272,-500.0,0.00035616,9]
[419713795,1775332267281,-214.71126558,0.00035616,9]
[419713796,1775332267290,-1570.35,0.00035616,9]
[419713797,1775332267299,-500.0,0.00035616,9]
[419713798,1775332267309,-500.0,0.00035616,9]
[419713799,1775332267320,-500.0,0.00035616,9]
[419713800,1775332267329,-500.0,0.00035616,9]
[419713801,1775332267338,-500.0,0.00035616,9]
[419713802,1775332267348,-500.0,0.00035616,9]
[419713803,1775332267358,-500.0,0.00035616,9]
[419713804,1775332267367,-502.04571422,0.00035616,9]
[419713805,1775332267377,-1842.63,0.00035616,9]